bitfinex-derivatives/quotes_ETHF0:USTF0_20230403
["timestamp","ask_amount","ask_price","bid_price","bid_amount"]
[1680510247523,1.0,1813.6,1813.3,3.2078]
[1680510247727,2.198,1813.4,1813.3,3.2078]
[1680510248132,2.205,1813.5,1813.3,3.2078]
[1680510248530,2.205,1813.7,1813.3,3.2078]
[1680510248737,2.205,1813.7,1813.5,3.2078]
[1680510249028,2.199,1813.6,1813.3,3.2078]
[1680510250030,2.205,1813.4,1813.1,3.2078]
[1680510251238,2.205,1813.4,1812.9,5.4058]
[1680510251440,2.205,1813.4,1813.1,3.2078]
[1680510252139,2.205,1813.3,1813.1,3.2078]
[1680510253339,2.205,1813.5,1813.1,3.2078]
[1680510253838,2.205,1813.5,1813.0,2.185]
[1680510253839,2.205,1813.5,1813.3,3.2078]
[1680510254235,2.199,1813.7,1813.3,3.2078]
[1680510254432,2.199,1813.7,1813.5,3.2078]
[1680510255942,6.42171103,1813.9,1813.6,2.185]
[1680510255943,0.53881103,1813.9,1813.6,2.185]
[1680510256137,2.205,1814.1,1813.8,3.2078]
[1680510257238,2.198,1813.9,1813.3,3.2078]
[1680510257542,2.194,1813.4,1813.3,3.2078]
[1680510258240,3.205,1813.7,1813.3,3.2078]
[1680510258940,2.205,1813.5,1813.3,3.2078]
[1680510259533,2.205,1813.5,1813.1,3.2078]
[1680510259737,2.194,1813.8,1813.3,5.3928]
[1680510259944,2.194,1813.8,1813.5,3.2078]
[1680510260239,2.194,1813.8,1813.3,2.185]
[1680510260240,1.0,1814.1,1813.7,3.2078]
[1680510260735,3.194,1814.2,1813.7,3.2078]
[1680510260939,5.91820452,1814.0,1813.9,3.2078]
[1680510261136,2.205,1814.3,1813.9,3.2078]
[1680510261835,2.205,1814.3,1814.0,0.03915956]
[1680510262033,2.198,1814.1,1814.0,0.03915956]
[1680510262234,4.387,1814.2,1813.9,3.2078]
[1680510262543,7.14528521,1814.1,1814.0,0.03515873]
[1680510262837,1.0,1814.1,1814.0,0.03515873]
[1680510263144,4.387,1814.2,1813.9,3.2078]
[1680510263531,4.387,1814.2,1814.0,0.03517116]
[1680510263944,4.387,1814.2,1813.9,3.2078]
[1680510264239,4.387,1814.2,1814.0,0.03517985]
[1680510264437,4.387,1814.2,1813.9,3.2078]
[1680510264737,4.387,1814.2,1814.0,0.03518615]
[1680510264942,4.387,1814.2,1813.9,3.2078]
[1680510265143,4.387,1814.2,1814.0,0.03519263]
[1680510266443,5.398,1814.1,1814.0,0.03519263]
[1680510266645,5.398,1814.1,1813.5,3.2078]
[1680510266835,1.0,1814.0,1813.6,0.0352136]
[1680510267441,11.54326391,1814.1,1813.7,3.2078]
[1680510268243,10.54326391,1814.1,1813.8,0.03522935]
[1680510268843,10.54326391,1814.1,1813.7,3.2078]
[1680510269238,10.54326391,1814.1,1813.8,0.03524111]
[1680510269435,10.54326391,1814.1,1813.7,3.2078]
[1680510269642,10.54326391,1814.1,1813.8,0.03524777]
[1680510269942,10.54326391,1814.1,1813.7,3.2078]
[1680510270247,6.14526391,1814.1,1813.8,0.03525407]
[1680510270543,7.6058,1813.9,1813.4,3.2078]
[1680510270736,4.41,1813.8,1813.4,3.2078]
[1680510270940,5.41,1813.8,1813.4,3.2078]
[1680510271542,5.41,1813.8,1813.2,3.2078]
[1680510271732,8.6178,1813.8,1813.2,3.2078]
[1680510271936,0.03580647,1813.7,1813.2,3.2078]
[1680510272143,0.03580647,1813.7,1813.4,3.2078]
[1680510273639,0.03580647,1813.7,1813.1,1.0]
[1680510273640,0.03580647,1813.7,1813.6,3.2078]
[1680510274039,4.41,1814.1,1813.6,3.2078]
[1680510274640,9.16618976,1814.0,1813.6,3.2078]
[1680510274947,5.95838976,1814.0,1813.5,3.2078]
[1680510275341,4.41,1814.1,1813.5,3.2078]
[1680510275542,4.41,1814.1,1813.7,3.2078]
[1680510275748,4.41,1814.1,1813.5,3.2078]
[1680510276245,4.41,1814.1,1813.7,3.2078]
[1680510278043,4.41,1813.8,1813.7,3.2078]
[1680510278238,4.41,1813.8,1813.5,3.2078]
[1680510278440,4.41,1813.8,1813.3,3.2078]
[1680510278845,4.41,1813.8,1813.5,3.2078]
[1680510285450,4.387,1814.0,1813.5,3.2078]
[1680510286052,6.23585333,1813.9,1813.5,3.2078]
[1680510286454,4.387,1814.0,1813.7,3.2078]
[1680510289049,4.41,1813.8,1813.3,3.2078]
[1680510289747,7.6178,1813.8,1813.3,3.2078]
[1680510289947,8.6178,1813.8,1813.3,3.2078]
[1680510290855,1.0,1813.9,1813.5,3.2078]
[1680510291257,4.41,1813.7,1813.5,3.2078]
[1680510293459,4.41,1813.7,1813.2,3.2078]
[1680510294159,4.41,1813.7,1813.4,3.2078]
[1680510296460,5.41,1814.0,1813.4,3.2078]
[1680510297158,6.17412126,1813.9,1813.4,3.2078]
[1680510297555,6.17412126,1813.9,1813.6,3.2078]
[1680510297751,6.17412126,1813.9,1813.2,3.77696754]
[1680510297752,4.387,1813.7,1813.2,3.77696754]
[1680510297954,4.387,1813.7,1813.2,3.2078]
[1680510298350,7.5948,1813.7,1813.2,3.2078]
[1680510298554,4.387,1813.7,1813.2,3.2078]
[1680510298755,7.5948,1813.7,1813.2,3.2078]
[1680510299052,4.387,1813.7,1813.2,3.2078]
[1680510299555,7.5948,1813.7,1813.2,3.2078]
[1680510300158,1.55210786,1813.8,1813.2,3.77696754]
[1680510300562,5.96210786,1813.8,1813.2,3.2078]
[1680510300756,5.96210786,1813.8,1813.2,3.77696754]
[1680510300963,4.96210786,1813.8,1813.2,3.77696754]
[1680510301263,4.96210786,1813.8,1813.2,3.2078]
[1680510301464,3.2078,1813.7,1813.2,3.2078]
[1680510301957,4.96210786,1813.8,1813.2,3.2078]
[1680510302652,5.82670663,1813.7,1813.2,3.77696754]
[1680510302857,0.55210786,1813.8,1813.4,3.2078]
[1680510303062,19.87498351,1814.0,1813.6,3.2078]
[1680510303259,4.41,1814.0,1813.6,3.2078]
[1680510303764,6.19005861,1813.9,1813.6,3.2078]
[1680510304157,1.73998351,1814.2,1813.8,3.2078]
[1680510304466,7.05372171,1814.1,1813.8,3.2078]
[1680510304663,4.398,1814.1,1813.8,3.2078]
[1680510306861,4.41,1814.2,1813.8,3.2078]
[1680510307962,4.41,1814.2,1813.9,0.13240239]
[1680510308166,4.41,1814.2,1813.8,3.2078]
[1680510308673,1.633159,1814.3,1814.0,3.2078]
[1680510308966,2.2813997,1814.4,1814.0,3.2078]
[1680510309368,2.2813997,1814.4,1814.2,3.2078]
[1680510310058,0.54141619,1814.4,1814.2,3.2078]
[1680510310263,6.13798351,1814.7,1814.2,3.2078]
[1680510310458,2.65324872,1814.6,1814.2,3.2078]
[1680510310665,2.65324872,1814.6,1814.4,3.2078]
[1680510311464,4.398,1814.7,1814.4,3.2078]
[1680510312068,3.38010998,1814.8,1814.4,3.20045996]
[1680510312967,1.64012647,1814.8,1814.4,3.20045996]
[1680510313265,1.73998351,1814.9,1814.6,3.2078]
[1680510314469,8.19931285,1815.0,1814.6,3.2078]
[1680510314658,3.64572317,1814.9,1814.6,3.2078]
[1680510314862,1.0,1814.9,1814.6,3.2078]
[1680510315864,8.19931285,1815.0,1814.6,3.2078]
[1680510315865,7.76243867,1815.0,1814.6,3.2078]
[1680510316365,4.41,1814.9,1814.6,3.2078]
[1680510316563,10.32137842,1814.9,1814.2,3.2078]
[1680510316765,1.0,1814.8,1814.2,3.2078]
[1680510317066,0.9960873,1814.8,1814.2,3.2078]
[1680510317265,4.41,1814.7,1814.2,3.2078]
[1680510317573,1.0,1814.6,1814.4,3.2078]
[1680510318070,4.41,1814.7,1814.4,3.2078]
[1680510318570,0.9960873,1814.8,1814.5,0.31642613]
[1680510319066,5.387,1814.9,1814.5,0.31642613]
[1680510320171,5.387,1814.9,1814.6,3.2078]
[1680510320770,4.387,1814.9,1814.6,3.2078]
[1680510321066,3.2078,1815.4,1814.8,3.2078]
[1680510321264,3.2078,1815.4,1815.0,3.2078]
[1680510321662,6.11486993,1815.3,1815.0,3.2078]
[1680510322062,2.194,1815.2,1815.0,3.2078]
[1680510323262,2.185,1815.1,1815.0,3.2078]
[1680510323468,2.185,1815.1,1814.7,3.2078]
[1680510323763,2.203,1815.0,1814.7,3.2078]
[1680510324268,2.203,1815.0,1814.9,3.2078]
[1680510324765,2.204,1815.1,1814.9,3.2078]
[1680510329875,2.203,1815.3,1814.9,3.2078]
[1680510330169,2.203,1815.3,1815.2,3.2078]
[1680510333676,2.203,1815.3,1814.9,3.2078]
[1680510333876,3.22306166,1815.5,1815.2,0.38386492]
[1680510334081,5.97556182,1815.3,1814.9,3.2078]
[1680510334277,2.204,1815.0,1814.9,3.2078]
[1680510334981,2.204,1815.2,1814.9,3.2078]
[1680510335282,2.204,1815.0,1814.9,3.2078]
[1680510338373,2.187,1815.0,1814.9,3.2078]
[1680510339875,4.391,1815.0,1814.5,3.2078]
[1680510340079,4.391,1815.0,1813.9,0.56916754]
[1680510340080,2.187,1814.6,1814.3,3.2078]
[1680510340278,2.185,1814.4,1814.3,3.2078]
[1680510340484,2.194,1814.6,1814.3,3.2078]
[1680510341290,2.204,1814.7,1814.5,3.2078]
[1680510341986,2.204,1814.8,1814.5,3.2078]
[1680510342292,2.185,1815.3,1814.7,5.3918]
[1680510342590,2.185,1815.3,1815.0,3.2078]
[1680510343392,2.185,1815.3,1815.2,3.2078]
[1680510343781,0.54097686,1815.6,1815.2,3.2078]
[1680510343782,2.204,1815.4,1815.2,3.2078]
[1680510347597,2.16940545,1815.7,1815.2,5.4118]
[1680510347788,1.0,1815.9,1815.6,3.2078]
[1680510347991,2.203,1815.7,1815.6,3.2078]
[1680510348294,8.40820905,1815.7,1815.6,3.2078]
[1680510348683,9.40820905,1815.7,1815.6,3.64534316]
[1680510348889,9.40820905,1815.7,1815.6,3.2078]
[1680510349090,9.40820905,1815.7,1815.2,3.2078]
[1680510349298,2.204,1815.5,1815.3,0.43755282]
[1680510349496,2.204,1815.4,1815.3,0.43755282]
[1680510349692,9.32999505,1815.4,1815.3,0.43755282]
[1680510349892,3.204,1815.4,1815.1,3.2078]
[1680510350194,2.204,1815.2,1815.1,3.2078]
[1680510351294,2.204,1815.3,1815.1,3.2078]
[1680510351692,2.204,1815.4,1815.1,3.2078]
[1680510351994,2.204,1815.4,1815.3,3.2078]
[1680510352299,2.187,1815.4,1815.3,3.2078]
[1680510352594,2.187,1815.4,1815.0,3.2078]
[1680510352794,1.0,1815.5,1815.0,3.2078]
[1680510352991,6.10927877,1815.3,1815.1,0.38404461]
[1680510353187,2.185,1815.2,1815.1,0.38404461]
[1680510356295,2.203,1815.3,1815.1,0.38404461]
[1680510356494,2.203,1815.3,1815.2,3.2078]
[1680510358402,2.204,1815.3,1815.1,0.38404461]
[1680510358601,2.204,1815.2,1815.0,3.2078]
[1680510359099,2.204,1815.3,1815.0,3.2078]
[1680510359300,2.204,1815.3,1815.2,3.2078]
[1680510363402,2.204,1815.4,1815.2,3.2078]
[1680510363606,2.194,1815.6,1815.2,8.59198806]
[1680510363806,2.194,1815.6,1815.5,3.2078]
[1680510364500,3.24222526,1815.9,1815.5,3.2078]
[1680510365103,2.187,1815.6,1815.2,3.59198806]
[1680510365304,2.203,1815.3,1815.2,0.38418806]
[1680510365705,2.203,1815.3,1815.0,3.2078]
[1680510365912,2.194,1815.1,1814.8,3.2078]
[1680510366209,2.204,1814.9,1814.6,3.2078]
[1680510366400,2.194,1814.7,1814.4,3.2078]
[1680510366600,1.0,1814.8,1814.2,3.2078]
[1680510366601,2.204,1814.4,1814.2,3.2078]
[1680510366797,3.2078,1814.6,1814.2,3.2078]
[1680510366798,2.23352612,1814.3,1814.2,3.2078]
[1680510367108,2.23352612,1814.3,1814.0,3.2078]
[1680510367302,2.185,1814.1,1814.0,3.2078]
[1680510367701,2.185,1814.1,1813.8,3.2078]
[1680510367900,2.204,1813.9,1813.8,3.2078]
[1680510368301,3.3450704,1813.9,1813.8,3.2078]
[1680510368907,3.3450704,1813.9,1813.6,3.2078]
[1680510369104,2.203,1813.7,1813.6,3.2078]
[1680510370714,7.605,1813.6,1813.0,3.77696754]
[1680510370903,2.187,1813.1,1813.0,3.2078]
[1680510371108,2.03502255,1813.1,1813.0,3.2078]
[1680510372109,2.194,1813.2,1813.0,3.2078]
[1680510372708,2.187,1813.1,1813.0,3.2078]
[1680510373206,2.187,1813.1,1812.8,3.2078]
[1680510373515,2.204,1812.9,1812.8,3.2078]
[1680510374604,2.204,1812.9,1812.6,3.2078]
[1680510374813,2.204,1812.7,1812.6,3.2078]
[1680510376915,2.203,1812.9,1812.6,3.2078]
[1680510377110,1.0,1813.3,1812.8,3.2078]
[1680510377316,2.185,1813.3,1813.0,3.2078]
[1680510378711,0.29169493,1813.2,1813.0,3.2078]
[1680510379713,2.194,1813.1,1812.5,5.3918]
[1680510379907,2.187,1812.9,1812.5,5.3918]
[1680510380117,2.204,1813.1,1812.7,3.2078]
[1680510380809,0.29169493,1813.2,1812.8,2.204]
[1680510381017,0.29169493,1813.2,1813.1,5.3968]
[1680510381417,2.194,1813.7,1813.1,5.3968]
[1680510381617,2.204,1813.6,1813.1,5.4118]
[1680510381816,0.23867003,1813.5,1813.1,5.4118]
[1680510382018,0.23867003,1813.5,1813.1,3.2078]
[1680510382516,2.204,1813.3,1812.9,3.2078]
[1680510384122,1.0,1813.2,1812.9,3.2078]
[1680510384415,5.4118,1813.0,1812.5,3.2078]
[1680510385119,2.204,1813.0,1812.5,3.2078]
[1680510386519,2.204,1813.0,1812.4,2.204]
[1680510386520,2.204,1813.0,1812.7,3.2078]
[1680510387722,2.194,1813.1,1812.7,3.2078]
[1680510387924,2.204,1813.3,1812.9,3.2078]
[1680510388721,2.204,1813.3,1812.8,2.189]
[1680510388722,2.204,1813.3,1813.1,3.2078]
[1680510389726,0.23867003,1813.5,1813.2,2.183]
[1680510390018,2.44267003,1813.5,1813.3,3.2078]
[1680510390223,2.203,1813.5,1813.3,3.2078]
[1680510391129,1.0,1813.8,1813.3,3.2078]
[1680510391130,2.187,1813.7,1813.3,3.2078]
[1680510392831,5.4118,1813.9,1813.5,3.2078]
[1680510393534,2.204,1813.9,1813.5,3.2078]
[1680510393734,0.15084903,1813.8,1813.5,3.2078]
[1680510393930,0.15084903,1813.8,1813.7,3.2078]
[1680510394233,2.204,1813.9,1813.7,3.2078]
[1680510397332,2.204,1813.9,1813.5,3.2078]
[1680510397835,2.204,1813.8,1813.5,3.2078]
[1680510400739,2.204,1813.8,1813.7,3.2078]
[1680510401237,7.2996,1814.2,1813.7,5.4118]
[1680510401434,5.0956,1814.2,1813.9,3.2078]
[1680510401641,2.76702624,1814.3,1813.9,3.2078]
[1680510402031,5.4118,1814.4,1813.9,5.3908]
[1680510402539,2.194,1814.2,1813.9,3.2078]
[1680510404240,2.204,1814.0,1813.7,3.2078]
[1680510404441,2.203,1813.8,1813.7,3.2078]
[1680510404746,0.0704327,1813.9,1813.7,3.2078]
[1680510405946,0.0704327,1813.9,1813.8,3.184]
[1680510406143,0.0704327,1813.9,1813.8,2.184]
[1680510406344,2.194,1814.2,1813.8,2.184]
[1680510406540,2.194,1814.2,1814.0,3.2078]
[1680510407639,5.95915712,1814.5,1814.0,5.4118]
[1680510407945,5.95915712,1814.5,1814.2,3.2078]
[1680510408242,1.64918386,1814.6,1814.2,5.3908]
[1680510408445,5.4018,1814.7,1814.4,3.2078]
[1680510408647,5.96128077,1814.7,1814.4,3.2078]
[1680510409041,3.2078,1814.7,1814.4,5.4118]
[1680510409948,7.3789,1814.8,1814.4,5.4118]
[1680510410446,2.187,1814.8,1814.4,5.4118]
[1680510410645,2.194,1814.6,1814.4,3.2078]
[1680510411953,1.0,1814.8,1814.4,3.2078]
[1680510411954,2.204,1814.7,1814.4,3.2078]
[1680510413754,2.204,1814.7,1814.6,3.2078]
[1680510414952,2.75456077,1814.9,1814.6,3.2078]
[1680510415148,2.204,1814.7,1814.6,3.2078]
[1680510416955,3.75456077,1814.9,1814.6,3.2078]
[1680510418257,2.75456077,1814.9,1814.6,3.2078]
[1680510418458,0.55056077,1814.9,1814.6,5.4118]
[1680510418756,5.4108,1815.1,1814.8,3.2078]
[1680510418963,7.06416868,1815.1,1814.8,3.2078]
[1680510419965,4.86116868,1815.1,1814.8,3.2078]
[1680510420266,4.7156,1815.6,1815.0,5.4118]
[1680510420267,6.40254189,1815.6,1815.0,5.4118]
[1680510420464,1.68694189,1815.6,1815.0,5.4118]
[1680510420664,2.204,1815.4,1815.2,3.2078]
[1680510421364,2.203,1815.3,1815.2,3.2078]
[1680510421564,2.203,1815.3,1815.0,3.2078]
[1680510421958,2.203,1815.3,1815.2,3.2078]
[1680510422159,2.203,1815.3,1814.9,3.2078]
[1680510422564,2.203,1815.3,1815.1,3.2078]
[1680510423673,2.203,1815.3,1815.2,0.35210608]
[1680510423975,2.203,1815.3,1815.1,3.2078]
[1680510424565,1.0,1815.6,1815.1,3.2078]
[1680510424566,2.204,1815.5,1815.1,3.2078]
[1680510424765,1.0,1815.4,1815.1,3.2078]
[1680510425268,2.204,1815.5,1815.3,3.2078]
[1680510427963,2.204,1815.5,1815.1,3.2078]
[1680510428473,2.204,1815.3,1815.1,3.2078]
[1680510428768,2.204,1815.3,1814.2,13.74376754]
[1680510428769,3.194,1815.2,1814.7,3.2078]
[1680510428971,2.204,1815.0,1814.7,3.2078]
[1680510429775,2.194,1814.8,1814.7,3.2078]
[1680510430074,2.194,1814.8,1814.3,5.95405886]
[1680510430275,2.194,1814.8,1814.3,5.4118]
[1680510430973,2.204,1814.6,1814.3,3.2078]
[1680510431573,2.204,1814.6,1814.2,2.196]
[1680510431772,2.204,1814.4,1814.1,3.2078]
[1680510432174,2.194,1814.3,1814.1,3.2078]
[1680510432373,2.194,1814.3,1813.9,3.2078]
[1680510432775,2.194,1814.3,1813.8,2.75851986]
[1680510433876,2.194,1814.3,1813.9,3.2078]
[1680510434676,2.204,1814.5,1814.1,3.2078]
[1680510435173,3.191,1815.0,1814.0,2.182]
[1680510435174,2.204,1815.0,1814.4,2.189]
[1680510435380,2.204,1815.0,1814.5,5.3898]
[1680510435881,2.204,1815.0,1814.7,3.2078]
[1680510436770,3.2078,1815.1,1814.7,5.3918]
[1680510436967,2.204,1815.2,1814.7,5.3918]
[1680510437479,2.204,1815.2,1814.9,3.2078]
[1680510437780,4.951,1815.3,1814.9,5.40803521]
[1680510437979,4.951,1815.3,1815.1,3.2078]
[1680510438282,2.204,1815.4,1814.7,5.4038]
[1680510438283,2.203,1815.2,1814.7,5.4038]
[1680510438480,5.4108,1815.2,1814.7,5.4038]
[1680510438669,5.4108,1815.2,1814.8,0.2420085]
[1680510438670,2.203,1815.2,1814.8,0.2420085]
[1680510440775,2.203,1815.2,1814.9,3.2078]
[1680510442178,2.203,1815.3,1814.9,3.2078]
[1680510442479,2.204,1815.1,1814.8,0.2420085]
[1680510442681,2.204,1815.1,1814.8,3.2078]
[1680510442885,2.194,1815.5,1815.0,5.3898]
[1680510443185,2.194,1815.5,1815.2,3.2078]
[1680510444877,2.204,1815.3,1815.2,3.2078]
[1680510445476,2.204,1815.3,1814.7,5.3968]
[1680510445682,2.204,1815.1,1814.9,3.2078]
[1680510446885,2.204,1815.3,1814.9,5.4118]
[1680510447689,2.204,1815.3,1815.1,3.2078]
[1680510450190,3.204,1815.6,1815.1,5.4038]
[1680510450489,3.204,1815.6,1815.1,2.196]
[1680510450690,3.204,1815.6,1815.1,5.4038]
[1680510451391,2.204,1815.6,1815.1,5.4038]
[1680510451788,2.204,1815.3,1815.1,3.2078]
[1680510451990,2.204,1815.2,1815.1,3.2078]
[1680510452493,2.204,1815.4,1815.1,3.2078]
[1680510453691,2.204,1815.4,1815.2,0.32486291]
[1680510453894,2.204,1815.4,1815.1,3.2078]
[1680510454296,4.2078,1815.7,1815.2,0.32486897]
[1680510454598,7.93864116,1815.3,1815.2,0.32486897]
[1680510454797,2.204,1815.3,1815.1,3.2078]
[1680510455292,2.194,1815.6,1815.2,0.32488233]
[1680510455491,2.194,1815.6,1815.1,5.4118]
[1680510455903,2.194,1815.6,1815.3,3.2078]
[1680510456397,2.194,1815.6,1815.4,0.35791425]
[1680510456794,2.194,1815.6,1815.3,3.2078]
[1680510457100,2.194,1815.6,1815.5,0.35792091]
[1680510457297,2.194,1815.6,1814.6,0.56916754]
[1680510457298,0.357,1815.5,1814.6,0.56916754]
[1680510457498,2.204,1814.7,1814.4,0.56916754]
[1680510457704,2.194,1814.5,1814.2,3.2078]
[1680510457895,2.187,1814.3,1814.0,0.56916754]
[1680510458195,2.185,1814.1,1813.8,0.56916754]
[1680510458500,5.3928,1814.1,1813.8,0.56916754]
[1680510458701,5.3928,1814.1,1813.7,1.42247217]
[1680510458999,5.3928,1814.1,1813.7,0.56916754]
[1680510459294,0.04883737,1814.0,1813.7,0.56916754]
[1680510459499,5.3928,1814.1,1813.7,0.56916754]
[1680510459696,0.04883105,1814.0,1813.7,0.56916754]
[1680510459896,5.3948,1814.3,1813.8,2.183]
[1680510460112,3.2078,1814.1,1813.8,2.183]
[1680510460300,5.3928,1814.1,1813.6,5.4118]
[1680510460594,5.3928,1814.1,1813.6,2.204]
[1680510460805,3.2078,1813.9,1813.6,2.204]
[1680510461601,5.3928,1814.1,1813.6,2.204]
[1680510461991,3.2078,1813.9,1813.6,2.204]
[1680510463202,2.185,1814.1,1813.6,2.204]
[1680510463402,3.2078,1814.0,1813.6,2.204]
[1680510463999,3.2078,1813.8,1813.6,2.204]
[1680510464899,0.04876472,1813.7,1813.6,2.204]
[1680510465203,0.04876472,1813.7,1813.4,5.95309424]
[1680510465405,0.04876472,1813.7,1813.4,2.74529424]
[1680510466397,3.2078,1813.6,1813.4,2.74529424]
[1680510466703,0.04876472,1813.7,1813.6,0.15194747]
[1680510466903,5.46056472,1813.7,1813.6,0.15194747]
[1680510468807,3.34681285,1813.7,1813.6,0.15194747]
[1680510470098,0.13901285,1813.7,1813.6,0.15194747]
[1680510470299,3.2078,1814.0,1813.6,4.36013224]
[1680510470499,0.11800204,1813.7,1813.6,4.36013224]
[1680510470904,2.194,1814.0,1813.6,7.56793224]
[1680510471097,5.96718618,1814.2,1813.7,2.204]
[1680510471300,0.10324325,1813.9,1813.8,4.20818477]
[1680510471501,2.203,1814.0,1813.8,4.20818477]
[1680510471710,2.204,1813.9,1813.6,3.35974747]
[1680510471906,2.204,1813.7,1813.6,3.35974747]
[1680510472500,2.204,1813.7,1813.6,0.15194747]
[1680510475009,3.204,1813.7,1813.6,0.15194747]
[1680510476712,2.204,1813.7,1813.6,0.15194747]
[1680510476919,5.4108,1813.8,1813.6,4.36013224]
[1680510477912,0.15750269,1813.7,1813.6,4.36013224]
[1680510478505,2.204,1814.0,1813.6,4.36013224]
[1680510478911,2.204,1814.0,1813.9,4.20818477]
[1680510480814,3.2078,1814.2,1813.7,5.4118]
[1680510480815,2.185,1814.2,1813.7,5.4118]
[1680510481011,2.185,1814.2,1814.1,4.20818477]
[1680510481818,0.56197099,1814.3,1814.1,4.20818477]
[1680510482019,5.3928,1814.5,1814.1,4.20818477]
[1680510482315,5.3928,1814.5,1814.4,4.20818477]
[1680510482627,2.185,1814.5,1814.4,4.20818477]
[1680510482829,5.4118,1814.7,1814.4,4.20818477]
[1680510483124,2.204,1814.7,1814.6,4.20818477]
[1680510483626,2.204,1814.7,1814.6,4.36121367]
[1680510485424,10.3183,1814.9,1814.6,4.36121367]
[1680510485625,5.4108,1814.9,1814.8,4.20818477]
[1680510485818,2.203,1814.9,1814.8,4.20818477]
[1680510486628,5.4118,1815.1,1814.7,3.2078]
[1680510486832,2.204,1815.1,1815.0,4.20818477]
[1680510487935,5.4108,1815.3,1814.9,3.2078]
[1680510488126,5.4108,1815.3,1815.2,4.20818477]
[1680510489734,2.203,1815.3,1815.2,4.20818477]
[1680510498438,2.203,1815.3,1815.2,4.57151186]
[1680510500944,2.203,1815.3,1815.2,0.36332709]
[1680510501242,5.4108,1815.3,1815.0,4.20818477]
[1680510501542,3.204,1815.2,1815.0,4.20818477]
[1680510502036,3.2078,1815.1,1815.0,4.20818477]
[1680510502242,4.3098,1815.1,1815.0,4.20818477]
[1680510502445,1.102,1815.1,1815.0,4.20818477]
[1680510503046,1.102,1815.1,1814.9,4.76213752]
[1680510503346,1.102,1815.1,1814.9,4.20818477]
[1680510503534,4.3098,1815.1,1814.9,4.20818477]
[1680510503740,1.102,1815.1,1814.9,4.20818477]
[1680510503938,4.3098,1815.1,1814.9,4.20818477]
[1680510504336,2.188,1815.0,1814.9,4.20818477]
[1680510504537,7.136,1815.0,1814.5,4.20818477]
[1680510504741,4.3098,1814.6,1814.3,4.20818477]
[1680510504943,1.092,1814.4,1814.3,4.20818477]
[1680510505144,1.092,1814.4,1814.3,4.75333193]
[1680510505548,1.092,1814.4,1814.3,4.20818477]
[1680510505742,1.0,1814.9,1814.6,4.20818477]
[1680510505947,3.2078,1815.1,1814.3,9.3098]
[1680510506247,3.75608043,1815.3,1815.1,4.20818477]
[1680510506451,3.2078,1815.3,1815.2,4.20818477]
[1680510506751,1.092,1815.3,1815.2,4.20818477]
[1680510506948,1.092,1815.3,1815.2,4.53862037]
[1680510506949,10.46050947,1815.3,1815.2,4.53862037]
[1680510507138,7.25270947,1815.3,1815.2,4.53862037]
[1680510507344,8.35470947,1815.3,1815.2,4.53862037]
[1680510507547,8.35470947,1815.3,1815.2,0.3304356]
[1680510507748,8.35470947,1815.3,1815.2,4.20818477]
[1680510507945,8.35470947,1815.3,1815.2,4.5403499]
[1680510508550,0.79181523,1815.1,1814.3,4.20818477]
[1680510508852,2.194,1814.4,1814.3,4.20818477]
[1680510509354,2.194,1814.4,1814.3,4.28365213]
[1680510512043,5.4118,1814.5,1814.3,4.28365213]
[1680510512247,2.204,1814.4,1814.3,4.28365213]
[1680510512451,2.204,1814.4,1814.3,4.20818477]
[1680510512856,2.186,1814.5,1814.4,4.20818477]
[1680510513658,2.198,1814.7,1814.5,1.0]
[1680510514044,2.198,1814.7,1814.6,0.04238788]
[1680510514248,2.194,1814.9,1814.6,4.25057265]
[1680510514956,2.204,1814.8,1814.6,4.25057265]
[1680510516450,2.204,1814.8,1814.6,4.28753856]
[1680510520054,5.4118,1814.8,1814.6,4.28753856]
[1680510520256,2.204,1814.8,1814.6,4.28753856]
[1680510520459,2.194,1814.7,1814.6,4.28753856]
[1680510520762,5.4018,1814.7,1814.6,0.04347281]
[1680510521054,14.63628874,1814.7,1813.9,5.3998]
[1680510521259,5.4118,1814.4,1814.0,4.20818477]
[1680510521751,5.4118,1814.4,1813.9,5.3998]
[1680510522154,2.204,1814.3,1814.2,4.20818477]
[1680510522556,2.204,1814.3,1813.9,3.2078]
[1680510522755,3.2078,1814.4,1814.3,4.20818477]
[1680510522951,2.204,1814.5,1814.3,4.20818477]
[1680510523155,4.24172398,1814.7,1814.6,4.20818477]
[1680510523156,0.03392398,1814.7,1814.6,4.20818477]
[1680510523359,4.82767195,1815.2,1815.1,4.20818477]
[1680510523559,5.4118,1815.2,1815.0,4.20818477]
[1680510523760,2.204,1815.1,1815.0,4.20818477]
[1680510523956,2.204,1815.1,1815.0,0.13410257]
[1680510524157,8.34987865,1815.1,1815.0,0.13410257]
[1680510524357,8.34987865,1815.1,1815.0,4.20818477]
[1680510525269,2.204,1815.1,1815.0,4.20818477]
[1680510526865,2.186,1815.2,1815.0,4.20818477]
[1680510527468,2.204,1815.3,1815.1,3.2078]
[1680510527665,2.204,1815.3,1815.0,4.20818477]
[1680510527964,2.204,1815.3,1815.2,0.13415265]
[1680510528161,2.204,1815.3,1815.2,4.34233742]
[1680510528362,2.204,1815.3,1815.2,4.20818477]
[1680510529064,2.204,1815.3,1815.2,4.3423537]